[Event "Titled Tuesday Blitz August 1 Early 2023"]
[White "Ismagilov, Damir"]
[Black "Van den Dikkenberg, Erik"]
[WhiteFideId "34199982"]
[BlackFideId "1005880"]
[WhiteElo "2523"]
[BlackElo "2356"]
[Result "1-0"]
[Round "9"]
[TimeControl "180+1"]
[Date "2023.08.01"]
[WhiteClock "0:01:43"]
[BlackClock "0:00:32"]
[Board "121"]

1. d4 {[%clk 0:03:00]}  Nf6 {[%clk 0:02:59]} 2. c4 {[%clk 0:03:01]}  g6 {[%clk 0:02:59]} 3. Nc3 {[%clk 0:03:01]}  Bg7 {[%clk 0:02:59]} 4. e4 {[%clk 0:03:01]}  d6 {[%clk 0:02:59]} 5. Be2 {[%clk 0:03:01]}  O-O {[%clk 0:02:59]} 6. Nf3 {[%clk 0:03:02]}  Nbd7 {[%clk 0:03:00]} 7. O-O {[%clk 0:03:01]}  e5 {[%clk 0:03:00]} 8. Be3 {[%clk 0:03:02]}  Qe7 {[%clk 0:02:57]} 9. Qc2 {[%clk 0:02:57]}  c6 {[%clk 0:02:57]} 10. d5 {[%clk 0:02:53]}  c5 {[%clk 0:02:55]} 11. Bg5 {[%clk 0:02:50]}  h6 {[%clk 0:02:54]} 12. Bd2 {[%clk 0:02:50]}  Nh5 {[%clk 0:02:53]} 13. g3 {[%clk 0:02:50]}  f5 {[%clk 0:02:44]} 14. Nh4 {[%clk 0:02:33]}  Qf6 {[%clk 0:02:27]} 15. exf5 {[%clk 0:02:31]}  g5 {[%clk 0:02:02]} 16. Ng6 {[%clk 0:02:27]}  Nb6 {[%clk 0:01:30]} 17. Nxf8 {[%clk 0:02:21]}  Bxf5 {[%clk 0:01:30]} 18. Ne4 {[%clk 0:02:10]}  Bxe4 {[%clk 0:00:54]} 19. Qxe4 {[%clk 0:02:06]}  Nf4 {[%clk 0:00:51]} 20. gxf4 {[%clk 0:02:04]}  gxf4 {[%clk 0:00:47]} 21. Ne6 {[%clk 0:01:55]}  Kh8 {[%clk 0:00:45]} 22. Kh1 {[%clk 0:01:54]}  Qh4 {[%clk 0:00:40]} 23. Rg1 {[%clk 0:01:47]}  Bf6 {[%clk 0:00:32]} 24. Bd3 {[%clk 0:01:43]} 1-0


[Site "https://www.chess.com"]

[Event "Titled Tuesday Blitz August 1 Early 2023"]
[White "Ferro, Mario"]
[Black "Khamdamova, Afruza"]
[WhiteFideId "810290"]
[BlackFideId "14210444"]
[WhiteElo "2328"]
[BlackElo "2492"]
[Result "0-1"]
[Round "9"]
[TimeControl "180+1"]
[Date "2023.08.01"]
[WhiteClock "0:00:00"]
[BlackClock "0:00:02"]
[Board "123"]

1. Nf3 {[%clk 0:03:00]}  d5 {[%clk 0:02:59]} 2. g3 {[%clk 0:03:01]}  Nf6 {[%clk 0:02:56]} 3. Bg2 {[%clk 0:03:01]}  e6 {[%clk 0:02:56]} 4. O-O {[%clk 0:03:02]}  c5 {[%clk 0:02:56]} 5. d3 {[%clk 0:03:02]}  Nc6 {[%clk 0:02:56]} 6. Nbd2 {[%clk 0:03:03]}  Be7 {[%clk 0:02:55]} 7. e4 {[%clk 0:03:03]}  O-O {[%clk 0:02:53]} 8. e5 {[%clk 0:03:02]}  Nd7 {[%clk 0:02:53]} 9. Qe2 {[%clk 0:03:02]}  b6 {[%clk 0:02:52]} 10. c3 {[%clk 0:03:02]}  Ba6 {[%clk 0:02:50]} 11. Rd1 {[%clk 0:03:01]}  Rc8 {[%clk 0:02:49]} 12. Nf1 {[%clk 0:03:00]}  d4 {[%clk 0:02:49]} 13. c4 {[%clk 0:02:59]}  Bb7 {[%clk 0:02:47]} 14. h4 {[%clk 0:02:59]}  Qc7 {[%clk 0:02:35]} 15. Re1 {[%clk 0:02:58]}  Kh8 {[%clk 0:02:22]} 16. g4 {[%clk 0:02:58]}  Rce8 {[%clk 0:02:17]} 17. Ng3 {[%clk 0:02:58]}  f6 {[%clk 0:02:16]} 18. exf6 {[%clk 0:02:40]}  Nxf6 {[%clk 0:02:15]} 19. g5 {[%clk 0:02:32]}  Nd7 {[%clk 0:02:02]} 20. Ne4 {[%clk 0:02:16]}  Nce5 {[%clk 0:01:55]} 21. Nxe5 {[%clk 0:02:16]}  Nxe5 {[%clk 0:01:55]} 22. f4 {[%clk 0:02:14]}  Ng6 {[%clk 0:01:52]} 23. Qh5 {[%clk 0:01:31]}  Nxf4 {[%clk 0:01:15]} 24. Bxf4 {[%clk 0:01:26]}  Qxf4 {[%clk 0:01:15]} 25. Rf1 {[%clk 0:00:59]}  Qe3+ {[%clk 0:01:15]} 26. Kh1 {[%clk 0:00:59]}  Bxe4 {[%clk 0:01:10]} 27. Bxe4 {[%clk 0:00:51]}  Qh3+ {[%clk 0:01:10]} 28. Kg1 {[%clk 0:00:51]}  Qg3+ {[%clk 0:01:07]} 29. Kh1 {[%clk 0:00:51]}  h6 {[%clk 0:00:42]} 30. gxh6 {[%clk 0:00:36]}  Qxh4+ {[%clk 0:00:42]} 31. Qxh4 {[%clk 0:00:33]}  Bxh4 {[%clk 0:00:42]} 32. hxg7+ {[%clk 0:00:28]}  Kxg7 {[%clk 0:00:42]} 33. Rg1+ {[%clk 0:00:25]}  Kf6 {[%clk 0:00:33]} 34. Raf1+ {[%clk 0:00:23]}  Ke5 {[%clk 0:00:33]} 35. Kg2 {[%clk 0:00:18]}  Rg8+ {[%clk 0:00:31]} 36. Kh3 {[%clk 0:00:18]}  Rh8 {[%clk 0:00:31]} 37. Rg6 {[%clk 0:00:15]}  Be7+ {[%clk 0:00:14]} 38. Kg4 {[%clk 0:00:15]}  Reg8 {[%clk 0:00:14]} 39. Rf7 {[%clk 0:00:15]}  Rxg6+ {[%clk 0:00:14]} 40. Bxg6 {[%clk 0:00:16]}  Bf6 {[%clk 0:00:13]} 41. Rxa7 {[%clk 0:00:15]}  Rh4+ {[%clk 0:00:13]} 42. Kg3 {[%clk 0:00:15]}  Rh6 {[%clk 0:00:11]} 43. Be4 {[%clk 0:00:15]}  Bg5 {[%clk 0:00:11]} 44. b3 {[%clk 0:00:14]}  Bf4+ {[%clk 0:00:11]} 45. Kg4 {[%clk 0:00:14]}  Rh2 {[%clk 0:00:11]} 46. Ra6 {[%clk 0:00:10]}  Be3 {[%clk 0:00:08]} 47. Kf3 {[%clk 0:00:08]}  Rf2+ {[%clk 0:00:08]} 48. Kg3 {[%clk 0:00:08]}  Rd2 {[%clk 0:00:02]} 49. a4 {[%clk 0:00:08]}  Rb2 {[%clk 0:00:02]} 50. Rxb6 {[%clk 0:00:08]}  Bd2 {[%clk 0:00:03]} 51. Bf3 {[%clk 0:00:07]}  Kf5 {[%clk 0:00:02]} 52. Bg4+ {[%clk 0:00:07]}  Kg5 {[%clk 0:00:03]} 53. Bxe6 {[%clk 0:00:07]}  Bb4 {[%clk 0:00:02]} 54. Kf3 {[%clk 0:00:07]}  Rxb3 {[%clk 0:00:03]} 55. Ke4 {[%clk 0:00:08]}  Ra3 {[%clk 0:00:03]} 56. Bd7 {[%clk 0:00:07]}  Ra2 {[%clk 0:00:02]} 57. Rb8 {[%clk 0:00:07]}  Kf6 {[%clk 0:00:02]} 58. Kd5 {[%clk 0:00:06]}  Ke7 {[%clk 0:00:03]} 59. Bf5 {[%clk 0:00:05]}  Rxa4 {[%clk 0:00:02]} 60. Rb7+ {[%clk 0:00:05]}  Kf6 {[%clk 0:00:03]} 61. Be4 {[%clk 0:00:05]}  Ra2 {[%clk 0:00:03]} 62. Rb6+ {[%clk 0:00:05]}  Kg5 {[%clk 0:00:03]} 63. Rb8 {[%clk 0:00:06]}  Re2 {[%clk 0:00:02]} 64. Rg8+ {[%clk 0:00:06]}  Kf6 {[%clk 0:00:03]} 65. Rg6+ {[%clk 0:00:06]}  Kf7 {[%clk 0:00:03]} 66. Rc6 {[%clk 0:00:05]}  Rf2 {[%clk 0:00:03]} 67. Rb6 {[%clk 0:00:05]}  Rf6 {[%clk 0:00:03]} 68. Rb7+ {[%clk 0:00:05]}  Kg8 {[%clk 0:00:03]} 69. Rc7 {[%clk 0:00:05]}  Kf8 {[%clk 0:00:03]} 70. Ke5 {[%clk 0:00:05]}  Rf2 {[%clk 0:00:02]} 71. Bf5 {[%clk 0:00:05]}  Ba5 {[%clk 0:00:02]} 72. Rd7 {[%clk 0:00:04]}  Bd2 {[%clk 0:00:01]} 73. Ke6 {[%clk 0:00:03]}  Bg5 {[%clk 0:00:01]} 74. Rb7 {[%clk 0:00:03]}  Re2+ {[%clk 0:00:01]} 75. Kd5 {[%clk 0:00:03]}  Be7 {[%clk 0:00:01]} 76. Be6 {[%clk 0:00:04]}  Rf2 {[%clk 0:00:01]} 77. Rb8+ {[%clk 0:00:04]}  Kg7 {[%clk 0:00:02]} 78. Rg8+ {[%clk 0:00:04]}  Kf6 {[%clk 0:00:02]} 79. Rg4 {[%clk 0:00:04]}  Rf3 {[%clk 0:00:02]} 80. Rg8 {[%clk 0:00:02]}  Rxd3 {[%clk 0:00:02]} 81. Bd7 {[%clk 0:00:03]}  Re3 {[%clk 0:00:02]} 82. Rg4 {[%clk 0:00:03]}  Re5+ {[%clk 0:00:02]} 83. Kc6 {[%clk 0:00:04]}  d3 {[%clk 0:00:03]} 84. Rg2 {[%clk 0:00:02]}  Re2 {[%clk 0:00:03]} 85. Rg3 {[%clk 0:00:03]}  d2 {[%clk 0:00:03]} 86. Rd3 {[%clk 0:00:03]}  Ke5 {[%clk 0:00:03]} 87. Bg4 {[%clk 0:00:03]}  Rf2 {[%clk 0:00:04]} 88. Kb5 {[%clk 0:00:02]}  Bg5 {[%clk 0:00:03]} 89. Bh5 {[%clk 0:00:01]}  Rh2 {[%clk 0:00:02]} 90. Bg4 {[%clk 0:00:00]}  Kf4 {[%clk 0:00:02]} 0-1


[Site "https://www.chess.com"]

[Event "Titled Tuesday Blitz August 1 Early 2023"]
[White "SicilianPanzer"]
[Black "Kaplan, Avi Harrison"]
[BlackFideId "30934559"]
[WhiteElo "2328"]
[BlackElo "2488"]
[Result "0-1"]
[Round "9"]
[TimeControl "180+1"]
[Date "2023.08.01"]
[WhiteClock "0:00:14"]
[BlackClock "0:00:07"]
[Board "124"]

1. b3 {[%clk 0:02:58]}  d5 {[%clk 0:02:54]} 2. Bb2 {[%clk 0:02:57]}  Nf6 {[%clk 0:02:54]} 3. e3 {[%clk 0:02:57]}  Bf5 {[%clk 0:02:47]} 4. Nf3 {[%clk 0:02:52]}  e6 {[%clk 0:02:46]} 5. h3 {[%clk 0:02:50]}  Be7 {[%clk 0:02:36]} 6. d3 {[%clk 0:02:47]}  O-O {[%clk 0:02:35]} 7. g4 {[%clk 0:02:45]}  Bg6 {[%clk 0:02:35]} 8. Nbd2 {[%clk 0:02:44]}  c5 {[%clk 0:02:30]} 9. Qe2 {[%clk 0:02:42]}  Nc6 {[%clk 0:02:30]} 10. e4 {[%clk 0:02:40]}  dxe4 {[%clk 0:02:20]} 11. Nxe4 {[%clk 0:02:38]}  Nd5 {[%clk 0:02:07]} 12. a3 {[%clk 0:02:26]}  Rc8 {[%clk 0:02:05]} 13. Nfd2 {[%clk 0:02:16]}  Nd4 {[%clk 0:01:58]} 14. Qd1 {[%clk 0:02:04]}  f5 {[%clk 0:01:58]} 15. Ng3 {[%clk 0:01:46]}  fxg4 {[%clk 0:01:55]} 16. hxg4 {[%clk 0:01:41]}  Bg5 {[%clk 0:01:55]} 17. Nde4 {[%clk 0:01:39]}  Nf3+ {[%clk 0:01:45]} 18. Ke2 {[%clk 0:01:37]}  Nd4+ {[%clk 0:01:05]} 19. Ke1 {[%clk 0:01:21]}  Qa5+ {[%clk 0:01:05]} 20. c3 {[%clk 0:01:16]}  Nf3+ {[%clk 0:00:56]} 21. Ke2 {[%clk 0:01:15]}  Be7 {[%clk 0:00:42]} 22. Bg2 {[%clk 0:01:06]}  Ne5 {[%clk 0:00:37]} 23. c4 {[%clk 0:01:00]}  Nf4+ {[%clk 0:00:35]} 24. Kf1 {[%clk 0:00:59]}  Nexd3 {[%clk 0:00:30]} 25. Bc3 {[%clk 0:00:53]}  Qc7 {[%clk 0:00:30]} 26. Qd2 {[%clk 0:00:38]}  Rcd8 {[%clk 0:00:22]} 27. Qe3 {[%clk 0:00:38]}  Nxg2 {[%clk 0:00:13]} 28. Kxg2 {[%clk 0:00:36]}  Qc6 {[%clk 0:00:12]} 29. Kh2 {[%clk 0:00:24]}  Bg5 {[%clk 0:00:04]} 30. Qxg5 {[%clk 0:00:22]}  Nxf2 {[%clk 0:00:05]} 31. Nxf2 {[%clk 0:00:14]}  Rxf2+ {[%clk 0:00:06]} 32. Kh3 {[%clk 0:00:14]}  Qg2+ {[%clk 0:00:05]} 33. Kh4 {[%clk 0:00:14]}  Qh2+ {[%clk 0:00:06]} 34. Rxh2 {[%clk 0:00:14]}  Rxh2# {[%clk 0:00:07]} 0-1


[Site "https://www.chess.com"]

[Event "Titled Tuesday Blitz August 1 Early 2023"]
[White "Rama, Tejas"]
[Black "Atanasov, Radislav"]
[WhiteFideId "30907381"]
[BlackFideId "2901471"]
[WhiteElo "2485"]
[BlackElo "2268"]
[Result "0-1"]
[Round "9"]
[TimeControl "180+1"]
[Date "2023.08.01"]
[WhiteClock "0:00:02"]
[BlackClock "0:00:29"]
[Board "125"]

1. d4 {[%clk 0:02:57]}  Nf6 {[%clk 0:02:59]} 2. c4 {[%clk 0:02:57]}  c5 {[%clk 0:02:59]} 3. d5 {[%clk 0:02:56]}  e6 {[%clk 0:03:00]} 4. Nc3 {[%clk 0:02:56]}  exd5 {[%clk 0:03:00]} 5. cxd5 {[%clk 0:02:56]}  d6 {[%clk 0:03:01]} 6. Nf3 {[%clk 0:02:57]}  g6 {[%clk 0:03:01]} 7. Nd2 {[%clk 0:02:56]}  Nbd7 {[%clk 0:02:53]} 8. e4 {[%clk 0:02:56]}  Bg7 {[%clk 0:02:50]} 9. Be2 {[%clk 0:02:56]}  O-O {[%clk 0:02:48]} 10. O-O {[%clk 0:02:55]}  Re8 {[%clk 0:02:43]} 11. a4 {[%clk 0:02:55]}  a6 {[%clk 0:02:38]} 12. Re1 {[%clk 0:02:54]}  b6 {[%clk 0:02:32]} 13. f4 {[%clk 0:02:03]}  c4 {[%clk 0:02:25]} 14. Bxc4 {[%clk 0:01:52]}  Nc5 {[%clk 0:02:21]} 15. e5 {[%clk 0:01:31]}  dxe5 {[%clk 0:02:17]} 16. fxe5 {[%clk 0:01:24]}  Ng4 {[%clk 0:02:12]} 17. Nf3 {[%clk 0:00:51]}  Nxe5 {[%clk 0:02:04]} 18. Nxe5 {[%clk 0:00:51]}  Bxe5 {[%clk 0:01:58]} 19. g3 {[%clk 0:00:47]}  Bh3 {[%clk 0:01:47]} 20. Be3 {[%clk 0:00:43]}  Qd6 {[%clk 0:01:35]} 21. Qd2 {[%clk 0:00:37]}  Bxg3 {[%clk 0:01:24]} 22. hxg3 {[%clk 0:00:37]}  Qxg3+ {[%clk 0:01:22]} 23. Kh1 {[%clk 0:00:37]}  Ne4 {[%clk 0:01:07]} 24. Qh2 {[%clk 0:00:14]}  Qh4 {[%clk 0:00:46]} 25. Nxe4 {[%clk 0:00:11]}  Qxe4+ {[%clk 0:00:41]} 26. Kg1 {[%clk 0:00:11]}  Qg4+ {[%clk 0:00:38]} 27. Kh1 {[%clk 0:00:12]}  Qf3+ {[%clk 0:00:33]} 28. Kg1 {[%clk 0:00:12]}  Re4 {[%clk 0:00:30]} 29. Bf4 {[%clk 0:00:02]}  Rxf4 {[%clk 0:00:29]} 0-1


[Site "https://www.chess.com"]

[Event "Titled Tuesday Blitz August 1 Early 2023"]
[White "Putri, Regita Desyari"]
[Black "favesaul"]
[WhiteFideId "7109083"]
[WhiteElo "2251"]
[BlackElo "2450"]
[Result "0-1"]
[Round "9"]
[TimeControl "180+1"]
[Date "2023.08.01"]
[WhiteClock "0:00:04"]
[BlackClock "0:00:02"]
[Board "127"]

1. e4 {[%clk 0:02:57]}  c5 {[%clk 0:02:59]} 2. Nf3 {[%clk 0:02:55]}  e6 {[%clk 0:02:59]} 3. d4 {[%clk 0:02:55]}  cxd4 {[%clk 0:03:00]} 4. Nxd4 {[%clk 0:02:55]}  Nc6 {[%clk 0:03:01]} 5. Nxc6 {[%clk 0:02:55]}  bxc6 {[%clk 0:03:01]} 6. Bd3 {[%clk 0:02:56]}  Nf6 {[%clk 0:02:55]} 7. e5 {[%clk 0:02:52]}  Qa5+ {[%clk 0:02:55]} 8. Nc3 {[%clk 0:02:41]}  Qxe5+ {[%clk 0:02:54]} 9. Be3 {[%clk 0:02:41]}  d5 {[%clk 0:02:44]} 10. Ne2 {[%clk 0:02:39]}  Qc7 {[%clk 0:02:40]} 11. O-O {[%clk 0:02:37]}  Bd6 {[%clk 0:02:37]} 12. h3 {[%clk 0:02:36]}  O-O {[%clk 0:02:35]} 13. c4 {[%clk 0:02:34]}  h6 {[%clk 0:02:26]} 14. Qc2 {[%clk 0:02:25]}  Bd7 {[%clk 0:02:11]} 15. c5 {[%clk 0:02:22]}  Be7 {[%clk 0:02:11]} 16. f4 {[%clk 0:02:19]}  a5 {[%clk 0:02:07]} 17. Nd4 {[%clk 0:02:10]}  Rab8 {[%clk 0:02:03]} 18. Nf3 {[%clk 0:02:09]}  Nh5 {[%clk 0:01:42]} 19. Ne5 {[%clk 0:02:07]}  Bf6 {[%clk 0:01:42]} 20. Ng4 {[%clk 0:01:49]}  Bxb2 {[%clk 0:01:38]} 21. Rab1 {[%clk 0:01:49]}  Bf6 {[%clk 0:01:24]} 22. Rxb8 {[%clk 0:01:48]}  Rxb8 {[%clk 0:01:23]} 23. Nxf6+ {[%clk 0:01:47]}  Nxf6 {[%clk 0:01:24]} 24. Bd4 {[%clk 0:01:46]}  Qd8 {[%clk 0:01:16]} 25. a3 {[%clk 0:01:25]}  Ne8 {[%clk 0:01:10]} 26. Rf3 {[%clk 0:01:15]}  f6 {[%clk 0:01:09]} 27. Bh7+ {[%clk 0:01:06]}  Kh8 {[%clk 0:01:08]} 28. Bd3 {[%clk 0:00:58]}  Qe7 {[%clk 0:01:06]} 29. Qe2 {[%clk 0:00:57]}  Nc7 {[%clk 0:01:04]} 30. Bc2 {[%clk 0:00:55]}  Be8 {[%clk 0:00:40]} 31. Qd3 {[%clk 0:00:48]}  g6 {[%clk 0:00:40]} 32. a4 {[%clk 0:00:40]}  Rb4 {[%clk 0:00:33]} 33. Qc3 {[%clk 0:00:32]}  Kg7 {[%clk 0:00:32]} 34. Rg3 {[%clk 0:00:31]}  Bf7 {[%clk 0:00:15]} 35. Kh2 {[%clk 0:00:29]}  Rc4 {[%clk 0:00:14]} 36. Qd3 {[%clk 0:00:28]}  Qe8 {[%clk 0:00:13]} 37. Bb3 {[%clk 0:00:20]}  Rb4 {[%clk 0:00:08]} 38. Qc3 {[%clk 0:00:20]}  Qe7 {[%clk 0:00:07]} 39. Bc2 {[%clk 0:00:10]}  Rc4 {[%clk 0:00:06]} 40. Qd3 {[%clk 0:00:10]}  Rxd4 {[%clk 0:00:05]} 41. Qxd4 {[%clk 0:00:09]}  e5 {[%clk 0:00:06]} 42. fxe5 {[%clk 0:00:07]}  fxe5 {[%clk 0:00:07]} 43. Qd3 {[%clk 0:00:07]}  Qf6 {[%clk 0:00:05]} 44. Qb3 {[%clk 0:00:05]}  Ne6 {[%clk 0:00:04]} 45. Qb6 {[%clk 0:00:05]}  Nf4 {[%clk 0:00:04]} 46. Qxa5 {[%clk 0:00:03]}  e4 {[%clk 0:00:03]} 47. Qe1 {[%clk 0:00:03]}  h5 {[%clk 0:00:03]} 48. Rf3 {[%clk 0:00:01]}  Qe5 {[%clk 0:00:03]} 49. Rg3 {[%clk 0:00:01]}  h4 {[%clk 0:00:03]} 50. Rg4 {[%clk 0:00:01]}  Nd3+ {[%clk 0:00:02]} 51. Kg1 {[%clk 0:00:01]}  Nxe1 {[%clk 0:00:02]} 52. Rxg6+ {[%clk 0:00:02]}  Bxg6 {[%clk 0:00:02]} 53. Bxe4 {[%clk 0:00:03]}  Qxe4 {[%clk 0:00:02]} 54. Kf1 {[%clk 0:00:04]}  d4 {[%clk 0:00:02]} 55. Kf2 {[%clk 0:00:03]}  Qe3+ {[%clk 0:00:02]} 56. Kf1 {[%clk 0:00:04]}  Bd3# {[%clk 0:00:02]} 0-1


[Site "https://www.chess.com"]

[Event "Titled Tuesday Blitz August 1 Early 2023"]
[White "Bilan, Danila"]
[Black "Nithyalakshmi, Sivanesan"]
[WhiteFideId "24161918"]
[BlackFideId "5706955"]
[WhiteElo "2554"]
[BlackElo "2354"]
[Result "1-0"]
[Round "9"]
[TimeControl "180+1"]
[Date "2023.08.01"]
[WhiteClock "0:00:06"]
[BlackClock "0:00:12"]
[Board "130"]

1. d4 {[%clk 0:02:54]}  Nf6 {[%clk 0:02:58]} 2. Nf3 {[%clk 0:02:54]}  g6 {[%clk 0:02:57]} 3. Bg5 {[%clk 0:02:54]}  Bg7 {[%clk 0:02:53]} 4. c3 {[%clk 0:02:49]}  Ne4 {[%clk 0:02:51]} 5. Bh4 {[%clk 0:02:49]}  d5 {[%clk 0:02:51]} 6. Nbd2 {[%clk 0:02:49]}  Nxd2 {[%clk 0:02:48]} 7. Qxd2 {[%clk 0:02:50]}  O-O {[%clk 0:02:47]} 8. e3 {[%clk 0:02:48]}  c6 {[%clk 0:02:47]} 9. Bd3 {[%clk 0:02:49]}  Nd7 {[%clk 0:02:41]} 10. O-O {[%clk 0:02:28]}  Re8 {[%clk 0:02:40]} 11. e4 {[%clk 0:02:07]}  Qb6 {[%clk 0:02:34]} 12. e5 {[%clk 0:01:53]}  Nf8 {[%clk 0:02:27]} 13. b4 {[%clk 0:01:44]}  f6 {[%clk 0:02:21]} 14. Rfe1 {[%clk 0:01:36]}  Bg4 {[%clk 0:02:13]} 15. exf6 {[%clk 0:01:10]}  exf6 {[%clk 0:02:14]} 16. Qf4 {[%clk 0:01:10]}  Bxf3 {[%clk 0:02:09]} 17. Qxf3 {[%clk 0:01:11]}  g5 {[%clk 0:02:05]} 18. Bg3 {[%clk 0:01:05]}  Qd8 {[%clk 0:01:49]} 19. h4 {[%clk 0:00:59]}  Qd7 {[%clk 0:01:43]} 20. Bf5 {[%clk 0:00:55]}  Qf7 {[%clk 0:01:40]} 21. a4 {[%clk 0:00:32]}  Rxe1+ {[%clk 0:01:36]} 22. Rxe1 {[%clk 0:00:32]}  Re8 {[%clk 0:01:35]} 23. Re2 {[%clk 0:00:25]}  gxh4 {[%clk 0:01:26]} 24. Bxh4 {[%clk 0:00:25]}  Ng6 {[%clk 0:01:26]} 25. Bg3 {[%clk 0:00:23]}  b6 {[%clk 0:00:39]} 26. Qg4 {[%clk 0:00:20]}  Rxe2 {[%clk 0:00:34]} 27. Qxe2 {[%clk 0:00:20]}  Qe7 {[%clk 0:00:34]} 28. Qxe7 {[%clk 0:00:09]}  Nxe7 {[%clk 0:00:33]} 29. Be6+ {[%clk 0:00:09]}  Kf8 {[%clk 0:00:33]} 30. Bb8 {[%clk 0:00:09]}  a6 {[%clk 0:00:32]} 31. Bc7 {[%clk 0:00:08]}  b5 {[%clk 0:00:30]} 32. a5 {[%clk 0:00:08]}  Bh6 {[%clk 0:00:29]} 33. f4 {[%clk 0:00:07]}  Ke8 {[%clk 0:00:26]} 34. Kf2 {[%clk 0:00:06]}  Ng6 {[%clk 0:00:22]} 35. g3 {[%clk 0:00:07]}  Nf8 {[%clk 0:00:22]} 36. Bf5 {[%clk 0:00:06]}  Ke7 {[%clk 0:00:21]} 37. Bc8 {[%clk 0:00:05]}  Bg7 {[%clk 0:00:17]} 38. Bxa6 {[%clk 0:00:05]}  Kd7 {[%clk 0:00:17]} 39. Bb6 {[%clk 0:00:05]}  Ne6 {[%clk 0:00:17]} 40. Bb7 {[%clk 0:00:05]}  h5 {[%clk 0:00:16]} 41. a6 {[%clk 0:00:05]}  Nc7 {[%clk 0:00:16]} 42. a7 {[%clk 0:00:05]}  f5 {[%clk 0:00:15]} 43. Bxc7 {[%clk 0:00:06]}  Kxc7 {[%clk 0:00:12]} 44. a8=Q {[%clk 0:00:06]} 1-0


[Site "https://www.chess.com"]

[Event "Titled Tuesday Blitz August 1 Early 2023"]
[White "Ambartsumova, Karina"]
[Black "Bashirli, Saadat"]
[WhiteFideId "4166299"]
[BlackFideId "13429990"]
[WhiteElo "2550"]
[BlackElo "2345"]
[Result "1-0"]
[Round "9"]
[TimeControl "180+1"]
[Date "2023.08.01"]
[WhiteClock "0:00:55"]
[BlackClock "0:00:12"]
[Board "131"]

1. c4 {[%clk 0:03:00]}  e6 {[%clk 0:02:58]} 2. Nc3 {[%clk 0:03:00]}  d5 {[%clk 0:02:56]} 3. d4 {[%clk 0:03:00]}  c6 {[%clk 0:02:55]} 4. Nf3 {[%clk 0:02:48]}  dxc4 {[%clk 0:02:53]} 5. e4 {[%clk 0:02:48]}  b5 {[%clk 0:02:53]} 6. e5 {[%clk 0:02:36]}  Bb4 {[%clk 0:02:50]} 7. Be2 {[%clk 0:02:34]}  Ne7 {[%clk 0:02:50]} 8. O-O {[%clk 0:02:34]}  O-O {[%clk 0:02:48]} 9. Qc2 {[%clk 0:02:34]}  Ng6 {[%clk 0:02:43]} 10. Rd1 {[%clk 0:02:33]}  Bb7 {[%clk 0:02:41]} 11. Bg5 {[%clk 0:02:32]}  Qb6 {[%clk 0:02:38]} 12. a3 {[%clk 0:02:28]}  Bxc3 {[%clk 0:02:38]} 13. bxc3 {[%clk 0:02:29]}  a5 {[%clk 0:02:38]} 14. Be3 {[%clk 0:02:27]}  Qc7 {[%clk 0:02:35]} 15. h4 {[%clk 0:02:26]}  Nd7 {[%clk 0:02:34]} 16. h5 {[%clk 0:02:20]}  Ne7 {[%clk 0:02:32]} 17. Ng5 {[%clk 0:02:19]}  g6 {[%clk 0:02:27]} 18. Ne4 {[%clk 0:02:10]}  Nd5 {[%clk 0:02:24]} 19. Bh6 {[%clk 0:02:06]}  Rfd8 {[%clk 0:02:19]} 20. Qc1 {[%clk 0:02:00]}  Nxe5 {[%clk 0:02:09]} 21. dxe5 {[%clk 0:01:49]}  Qxe5 {[%clk 0:02:10]} 22. Bf3 {[%clk 0:01:43]}  Rac8 {[%clk 0:01:46]} 23. Re1 {[%clk 0:01:39]}  Qf5 {[%clk 0:01:25]} 24. Ng3 {[%clk 0:00:59]}  Qd3 {[%clk 0:01:16]} 25. Ne4 {[%clk 0:00:58]}  f5 {[%clk 0:00:20]} 26. Nc5 {[%clk 0:00:58]}  Qxc3 {[%clk 0:00:19]} 27. Bxd5 {[%clk 0:00:58]}  Qxc1 {[%clk 0:00:17]} 28. Bxe6+ {[%clk 0:00:58]}  Kh8 {[%clk 0:00:17]} 29. Bxc1 {[%clk 0:00:55]}  Rc7 {[%clk 0:00:12]} 30. Bb2+ {[%clk 0:00:55]} 1-0


[Site "https://www.chess.com"]

[Event "Titled Tuesday Blitz August 1 Early 2023"]
[White "AndresDelgado77"]
[Black "robertoalejandro10"]
[WhiteElo "2335"]
[BlackElo "2545"]
[Result "1-0"]
[Round "9"]
[TimeControl "180+1"]
[Date "2023.08.01"]
[WhiteClock "0:00:06"]
[BlackClock "0:00:00"]
[Board "132"]

1. e4 {[%clk 0:03:00]}  a6 {[%clk 0:02:46]} 2. d4 {[%clk 0:02:50]}  b5 {[%clk 0:02:46]} 3. Nf3 {[%clk 0:02:50]}  Bb7 {[%clk 0:02:46]} 4. Bd3 {[%clk 0:02:50]}  g6 {[%clk 0:02:46]} 5. h4 {[%clk 0:02:49]}  h5 {[%clk 0:02:45]} 6. e5 {[%clk 0:02:36]}  Bg7 {[%clk 0:02:24]} 7. Nbd2 {[%clk 0:02:34]}  Nh6 {[%clk 0:02:23]} 8. Ne4 {[%clk 0:02:27]}  Nf5 {[%clk 0:02:14]} 9. Nc5 {[%clk 0:02:07]}  Bd5 {[%clk 0:02:04]} 10. Bxf5 {[%clk 0:01:38]}  gxf5 {[%clk 0:02:03]} 11. Nd3 {[%clk 0:01:33]}  d6 {[%clk 0:02:01]} 12. Nf4 {[%clk 0:01:30]}  Be4 {[%clk 0:02:01]} 13. e6 {[%clk 0:01:22]}  c5 {[%clk 0:00:52]} 14. Ng5 {[%clk 0:01:02]}  Qa5+ {[%clk 0:00:07]} 15. Bd2 {[%clk 0:00:59]}  b4 {[%clk 0:00:04]} 16. Nxf7 {[%clk 0:00:31]}  Rh7 {[%clk 0:00:03]} 17. Ng5 {[%clk 0:00:26]}  Bxd4 {[%clk 0:00:02]} 18. Nxh7 {[%clk 0:00:22]}  Bxb2 {[%clk 0:00:02]} 19. Rb1 {[%clk 0:00:13]}  Qxa2 {[%clk 0:00:00]} 20. Ng5 {[%clk 0:00:06]} 1-0


[Site "https://www.chess.com"]

[Event "Titled Tuesday Blitz August 1 Early 2023"]
[White "Viskelis, Darius"]
[Black "Rodchenkov, Sergey D."]
[WhiteFideId "12800830"]
[BlackFideId "4168712"]
[WhiteElo "2321"]
[BlackElo "2491"]
[Result "0-1"]
[Round "9"]
[TimeControl "180+1"]
[Date "2023.08.01"]
[WhiteClock "0:00:53"]
[BlackClock "0:01:49"]
[Board "135"]

1. e4 {[%clk 0:02:40]}  c5 {[%clk 0:02:59]} 2. Nf3 {[%clk 0:02:39]}  d6 {[%clk 0:03:00]} 3. Bb5+ {[%clk 0:02:40]}  Nd7 {[%clk 0:02:59]} 4. c3 {[%clk 0:02:39]}  Nf6 {[%clk 0:02:56]} 5. Bd3 {[%clk 0:02:38]}  e6 {[%clk 0:02:56]} 6. O-O {[%clk 0:02:37]}  a6 {[%clk 0:02:55]} 7. Bc2 {[%clk 0:02:37]}  b5 {[%clk 0:02:54]} 8. d4 {[%clk 0:02:38]}  Be7 {[%clk 0:02:52]} 9. a4 {[%clk 0:02:33]}  Bb7 {[%clk 0:02:52]} 10. Re1 {[%clk 0:02:29]}  O-O {[%clk 0:02:50]} 11. Nbd2 {[%clk 0:02:28]}  Rc8 {[%clk 0:02:47]} 12. Nf1 {[%clk 0:02:22]}  Nb6 {[%clk 0:02:38]} 13. axb5 {[%clk 0:02:21]}  axb5 {[%clk 0:02:38]} 14. Qe2 {[%clk 0:02:21]}  b4 {[%clk 0:02:32]} 15. Bg5 {[%clk 0:02:07]}  Nh5 {[%clk 0:02:08]} 16. Bxe7 {[%clk 0:01:59]}  Qxe7 {[%clk 0:02:09]} 17. dxc5 {[%clk 0:01:44]}  dxc5 {[%clk 0:02:07]} 18. Ne5 {[%clk 0:01:43]}  Qg5 {[%clk 0:02:00]} 19. Nc4 {[%clk 0:01:33]}  Nf4 {[%clk 0:01:50]} 20. Qd1 {[%clk 0:00:53]}  Qxg2# {[%clk 0:01:49]} 0-1


[Site "https://www.chess.com"]